bitfinex/quotes_SOLUSD_20250809
["timestamp","ask_amount","ask_price","bid_price","bid_amount"]
[1754725725766,0.03,180.56,180.55,192.37712611]
[1754725726985,0.03,180.56,180.55,186.83849416]
[1754725729188,0.03,180.56,180.55,187.40057429]
[1754725729373,0.03,180.56,180.55,192.37712611]
[1754725733880,0.03,180.56,180.55,192.66144925]
[1754725734101,0.03,180.56,180.55,166.66144925]
[1754725738993,0.03,180.56,180.55,169.47149382]
[1754725739503,0.03,180.57,180.56,135.31454078]
[1754725739808,0.03,180.57,180.56,153.64681937]
[1754725740101,0.03,180.57,180.56,147.40849416]
[1754725740304,0.74,180.57,180.56,186.04849416]
[1754725742887,0.74,180.57,180.56,181.07194234]
[1754725743094,0.74,180.57,180.56,186.04849416]
[1754725745412,0.03,180.57,180.56,186.04849416]
[1754725746615,0.03,180.57,180.56,186.03443802]
[1754725746908,0.03,180.57,180.56,181.0578862]
[1754725747420,0.72,180.57,180.56,186.03443802]
[1754725748707,0.03,180.57,180.56,186.03443802]
[1754725754602,0.72,180.57,180.56,186.03443802]
[1754725756127,0.72,180.57,180.56,101.31167063]
[1754725756327,11.23457031,180.57,180.56,12.64167063]
[1754725756633,11.23457031,180.57,180.56,51.24167063]
[1754725757119,11.23457031,180.57,180.56,51.30167063]
[1754725758226,11.23457031,180.57,180.56,4.14167063]
[1754725758430,11.23457031,180.57,180.56,42.74167063]
[1754725758618,11.23457031,180.57,180.56,42.76715861]
[1754725759014,11.23457031,180.57,180.56,51.32715861]
[1754725759409,11.23457031,180.57,180.56,42.76715861]
[1754725763235,11.23457031,180.57,180.56,51.32715861]
[1754725763541,11.23457031,180.57,180.56,42.76715861]
[1754725765444,11.23457031,180.57,180.56,51.32715861]
[1754725769342,11.23457031,180.57,180.56,42.76715861]
[1754725769544,11.23457031,180.57,180.56,47.22]
[1754725771745,11.23457031,180.57,180.56,51.32198537]
[1754725772425,10.54457031,180.57,180.56,51.32198537]
[1754725773543,11.22457031,180.57,180.56,51.32198537]
[1754725773718,10.54457031,180.57,180.56,51.32198537]
[1754725775944,5.56801849,180.57,180.56,51.99198537]
[1754725776126,5.00655182,180.57,180.56,51.99198537]
[1754725777053,10.54457031,180.57,180.56,51.32198841]
[1754725778322,5.00655182,180.57,180.56,51.32198841]
[1754725778943,5.00655182,180.57,180.56,51.99198841]
[1754725780749,3.212054,180.57,180.56,51.99198841]
[1754725781323,0.03,180.57,180.56,51.99198841]
[1754725781630,3.212054,180.57,180.56,51.32198841]
[1754725785146,0.03,180.57,180.56,75.81858319]
[1754725788530,0.03,180.57,180.56,13.39198841]
[1754725788726,0.03,180.57,180.56,51.95198841]
[1754725789557,0.03,180.57,180.56,56.92251387]
[1754725793797,0.03,180.57,180.56,62.46083908]
[1754725795675,0.03,180.57,180.56,151.13083908]
[1754725799827,0.03,180.57,180.56,146.16031362]
[1754725799996,0.03,180.57,180.56,151.13083908]
[1754725800192,0.03,180.57,180.56,166.23705465]
[1754725800711,0.03,180.57,180.56,101.39198841]
[1754725800927,0.71,180.57,180.56,139.91427552]
[1754725801095,5.68052546,180.57,180.56,139.91427552]
[1754725801582,5.68052546,180.57,180.56,51.24427552]
[1754725803319,0.71,180.57,180.56,51.24427552]
[1754725805719,11.21854395,180.57,180.56,51.24427552]
[1754725805908,6.24801849,180.57,180.56,51.24427552]
[1754725806111,5.68052546,180.57,180.56,51.24427552]
[1754725806302,0.71,180.57,180.56,51.24427552]
[1754725806634,5.68052546,180.57,180.56,51.24427552]
[1754725807899,0.71,180.57,180.56,51.24427552]
[1754725808098,5.68052546,180.57,180.56,51.24427552]
[1754725808328,0.71,180.57,180.56,51.24427552]
[1754725808626,5.68052546,180.57,180.56,51.24427552]
[1754725809228,0.71,180.57,180.56,51.24427552]
[1754725809403,5.68052546,180.57,180.56,51.24427552]
[1754725809727,0.71,180.57,180.56,51.24427552]
[1754725809934,0.03,180.57,180.56,51.24427552]
[1754725810233,0.03,180.57,180.56,12.72427552]
[1754725810234,5.66052546,180.57,180.56,12.72427552]
[1754725810527,5.66052546,180.57,180.56,51.26427552]
[1754725810704,3.87234688,180.57,180.56,51.26427552]
[1754725810905,0.69,180.57,180.56,51.26427552]
[1754725811113,3.87234688,180.57,180.56,51.26427552]
[1754725812229,0.69,180.57,180.56,51.26427552]
[1754725812414,3.87234688,180.57,180.56,51.26427552]
[1754725813127,0.69,180.57,180.56,51.26427552]
[1754725813323,3.87234688,180.57,180.56,51.26427552]
[1754725813830,0.69,180.57,180.56,51.26427552]
[1754725814131,3.87234688,180.57,180.56,51.26427552]
[1754725814825,0.69,180.57,180.56,51.26427552]
[1754725815509,3.87234688,180.57,180.56,51.26427552]
[1754725817224,3.87234688,180.57,180.56,51.26955049]
[1754725818716,3.21234688,180.57,180.56,51.26955049]
[1754725819109,0.03,180.57,180.56,51.26955049]
[1754725819328,3.21234688,180.57,180.56,51.26955049]
[1754725819923,0.03,180.57,180.56,51.26955049]
[1754725820148,3.21234688,180.57,180.56,51.26955049]
[1754725821412,3.87234688,180.57,180.56,51.26955049]
[1754725824037,9.41036537,180.57,180.56,51.26955049]
[1754725824635,9.41036537,180.57,180.56,51.27045625]
[1754725826944,3.87234688,180.57,180.56,51.27045625]
[1754725828031,0.69,180.57,180.56,51.27045625]
[1754725828232,3.87234688,180.57,180.56,51.27045625]
[1754725828441,3.21234688,180.57,180.56,51.27045625]
[1754725828738,3.21234688,180.57,180.56,51.26980194]
[1754725829857,0.03,180.57,180.56,51.26980194]
[1754725830058,3.21234688,180.57,180.56,51.26980194]
[1754725836556,3.21234688,180.57,180.56,51.95980194]
[1754725837059,3.21234688,180.57,180.56,51.26980194]
[1754725837263,3.21234688,180.57,180.56,51.27146345]
[1754725838951,0.03,180.57,180.56,51.27146345]
[1754725839454,3.21234688,180.57,180.56,51.27146345]
[1754725841455,9.43036537,180.57,180.56,51.27146345]
[1754725843361,9.43036537,180.57,180.56,47.16]
[1754725843547,9.43036537,180.57,180.56,51.27879208]
[1754725843755,0.03,180.57,180.56,51.96879208]
[1754725844958,0.03,180.57,180.56,155.74500765]
[1754725845176,3.21234688,180.57,180.56,139.90879208]
[1754725845742,3.21234688,180.57,180.56,51.23879208]
[1754725846961,8.75036537,180.57,180.56,51.23879208]
[1754725847264,9.43036537,180.57,180.56,51.23879208]
[1754725849967,9.43036537,180.57,180.56,42.67879208]
[1754725850272,9.43036537,180.57,180.56,51.23879208]
[1754725850666,9.43036537,180.57,180.56,42.67879208]
[1754725851269,11.50636447,180.57,180.56,42.67879208]
[1754725851444,9.43036537,180.57,180.56,42.67879208]
[1754725852359,11.50571933,180.57,180.56,42.67879208]
[1754725853171,11.79004247,180.57,180.56,38.6]
[1754725853558,11.79004247,180.57,180.56,0.06]
[1754725857364,0.28432314,180.56,180.54,0.06]
[1754725857563,42.87605754,180.55,180.54,0.06]
[1754725857763,42.87605754,180.55,180.54,4.17950771]
[1754725858366,42.87605754,180.55,180.54,0.06]
[1754725858877,48.41468949,180.55,180.54,0.06]
[1754725860555,35.68530197,180.55,180.54,0.06]
[1754725864160,32.50295509,180.55,180.54,0.06]
[1754725864380,35.68530197,180.55,180.54,0.06]
[1754725866890,35.69530197,180.55,180.54,0.06]
[1754725868392,35.00530197,180.55,180.54,0.06]
[1754725868567,35.00530197,180.55,180.54,0.75]
[1754725869795,35.00530197,180.55,180.54,0.06]
[1754725870773,35.00530197,180.55,180.54,4.1784518]
[1754725871472,35.00530197,180.55,180.54,4.8684518]
[1754725871884,35.00530197,180.55,180.54,0.06]
[1754725872087,35.00530197,180.55,180.54,4.17833441]
[1754725872899,35.00530197,180.55,180.54,4.17848042]
[1754725873198,35.00530197,180.55,180.54,0.06]
[1754725878900,31.82295509,180.55,180.54,0.06]
[1754725879084,35.00530197,180.55,180.54,0.06]
[1754725882305,35.00530197,180.55,180.54,4.1810458]
[1754725882499,35.69530197,180.55,180.54,0.06]
[1754725883592,35.69530197,180.55,180.54,4.18157981]
[1754725885489,35.00530197,180.55,180.54,4.18157981]
[1754725890008,35.69530197,180.55,180.54,4.18157981]
[1754725890713,35.00530197,180.55,180.54,4.18157981]
[1754725891985,35.00530197,180.55,180.54,4.87157981]
[1754725892608,35.00530197,180.55,180.54,4.18157981]
[1754725894186,35.71530197,180.55,180.54,4.18157981]
[1754725894386,37.79113393,180.55,180.54,4.18157981]
[1754725894583,37.79113393,180.55,180.42,25.41498332]
[1754725894805,3.18234688,180.51,180.46,3.18234688]
[1754725894983,3.18234688,180.51,180.5,0.06]
[1754725895186,3.18234688,180.51,180.5,38.58]
[1754725896604,5.53952901,180.53,180.5,38.58]
[1754725896913,3.18234688,180.51,180.5,39.25]
[1754725897114,5.53952901,180.53,180.5,39.25]
[1754725897300,3.18234688,180.52,180.5,39.25]
[1754725897610,3.18234688,180.52,180.51,0.67]
[1754725898710,5.53893873,180.54,180.51,0.67]
[1754725898912,3.18234688,180.52,180.51,0.67]
[1754725899100,3.18234688,180.53,180.51,0.67]
[1754725899621,3.18234688,180.53,180.5,38.58]
[1754725899622,3.18234688,180.55,180.52,0.67]
[1754725899924,3.18234688,180.55,180.53,38.52]
[1754725900108,3.18234688,180.54,180.53,38.52]
[1754725900312,6.27840979,180.56,180.53,38.52]
[1754725900617,3.18234688,180.54,180.53,38.52]
[1754725900814,3.18234688,180.55,180.53,39.19]
[1754725901119,3.18234688,180.55,180.54,0.67]
[1754725901819,3.18234688,180.55,180.53,39.19]
[1754725902014,5.56840979,180.56,180.53,39.19]
[1754725902220,3.18234688,180.55,180.53,39.19]
[1754725905727,3.18234688,180.55,180.53,38.52]
[1754725905904,3.18234688,180.55,180.54,0.67]
[1754725906322,3.21234688,180.56,180.54,0.67]
[1754725906527,0.03,180.56,180.55,0.67]
[1754725906733,0.03,180.56,180.55,4.79952366]
[1754725907023,0.03,180.56,180.55,4.12952366]
[1754725908027,3.21234688,180.56,180.55,4.12952366]
[1754725912027,0.03,180.56,180.55,4.12952366]
[1754725912512,3.21234688,180.56,180.55,4.12952366]
[1754725913309,3.21234688,180.56,180.55,4.12700278]
[1754725915728,0.03,180.56,180.55,4.12700278]
[1754725917535,0.03,180.56,180.55,4.79700278]
[1754725921110,0.03,180.56,180.55,7.97661994]
[1754725921415,0.03,180.56,180.55,28.62146746]
[1754725923440,0.03,180.56,180.55,29.17533065]
[1754725925544,0.03,180.56,180.55,67.12146746]
[1754725931119,0.03,180.56,180.55,67.67533065]
[1754725931725,0.03,180.56,180.55,156.37533065]
[1754725932046,0.03,180.56,180.55,155.82146746]
[1754725932842,0.03,180.56,180.55,155.81195055]
[1754725938439,0.03,180.57,180.56,15.10621557]
[1754725938749,0.03,180.57,180.56,23.62715112]
[1754725939328,0.03,180.57,180.56,25.84401612]
[1754725939536,1e-08,180.57,180.56,25.84401612]
[1754725940526,1e-08,180.57,180.56,31.38234133]
[1754725943542,1e-08,180.57,180.56,120.08234133]
[1754725943763,1e-08,180.57,180.56,119.52850881]
[1754725944655,1e-08,180.57,180.56,118.85219692]
[1754725944851,0.70000001,180.57,180.56,118.85219692]
[1754725945162,0.70000001,180.57,180.56,157.33219692]
[1754725945464,0.70000001,180.57,180.56,155.11533192]
[1754725949939,1e-08,180.57,180.56,155.11533192]
[1754725956856,1e-08,180.57,180.56,155.80533192]
[1754725957475,1e-08,180.57,180.56,158.02231992]
[1754725960969,1e-08,180.57,180.56,158.30664306]
[1754725965575,0.03,180.58,180.57,18.57288559]
[1754725965770,0.03,180.58,180.57,23.92513169]
[1754725966680,0.03,180.58,180.57,29.46315018]
[1754725966883,0.03,180.58,180.57,31.67989218]
[1754725968186,0.03,180.58,180.57,31.69196756]
[1754725969461,0.03,180.59,180.58,41.10621557]
[1754725969786,0.03,180.59,180.58,87.57908209]
[1754725970164,0.03,180.59,180.58,176.27908209]
[1754725970484,1e-08,180.59,180.58,155.8167939]
[1754725971079,1e-08,180.59,180.58,172.44529516]
[1754725971381,1e-08,180.59,180.58,171.75529516]
[1754725972183,1e-08,180.59,180.58,172.44529516]
[1754725972968,0.03,180.6,180.58,172.7296183]
[1754725973174,0.03,180.6,180.59,40.28132386]
[1754725973366,0.03,180.61,180.6,41.39053871]
[1754725973572,1e-08,180.61,180.6,166.48190649]
[1754725973778,1e-08,180.61,180.6,167.17190649]
[1754725974083,1e-08,180.61,180.6,167.16881533]
[1754725974482,1e-08,180.61,180.6,130.23494333]
[1754725974682,0.68000001,180.61,180.6,168.69494333]
[1754725975386,0.68000001,180.61,180.6,174.23204189]
[1754725977093,0.68000001,180.61,180.6,174.23075698]
[1754725978987,0.68000001,180.61,180.6,157.60075698]
[1754725980175,0.68000001,180.61,180.6,154.4185897]
[1754725980382,0.68000001,180.61,180.6,157.60093658]
[1754725981082,0.68000001,180.61,180.6,174.23093658]
[1754725982191,0.68000001,180.61,180.6,200.23093658]
[1754725982582,0.68000001,180.61,180.6,197.0485897]
[1754725982804,0.68000001,180.61,180.6,183.31661344]
[1754725983481,0.68000001,180.61,180.6,181.10048544]
[1754725987071,1e-08,180.61,180.6,181.10048544]
[1754725987476,0.66000001,180.61,180.6,181.10048544]
[1754725989475,1e-08,180.61,180.6,181.10048544]
[1754725989676,0.66000001,180.61,180.6,181.10048544]
[1754725990081,1e-08,180.61,180.6,181.10048544]
[1754725992199,1e-08,180.61,180.6,183.31698144]
[1754725993693,1e-08,180.61,180.6,183.31842438]
[1754725994895,1e-08,180.61,180.6,183.60274752]
[1754725995197,1e-08,180.61,180.6,184.29274752]
[1754725995375,1e-08,180.61,180.6,184.35274752]
[1754725996786,1e-08,180.61,180.6,183.66274752]
[1754725997993,1e-08,180.61,180.6,184.35274752]
[1754725998193,1e-08,180.61,180.6,200.98274752]
[1754725999101,1e-08,180.61,180.6,200.29274752]
[1754726003797,1e-08,180.61,180.6,200.98274752]
[1754726004507,1e-08,180.61,180.6,200.29274752]
[1754726010612,0.66000001,180.61,180.6,6.39276337]
[1754726010914,0.66000001,180.61,180.6,42.63626737]
[1754726012409,3.84234689,180.61,180.6,4.17626737]
[1754726012612,9.37913887,180.61,180.6,42.63626737]
[1754726014696,9.37913887,180.61,180.6,4.17626737]
[1754726014899,9.37913887,180.61,180.6,42.63626737]
[1754726018124,9.37913887,180.61,180.6,42.63949105]
[1754726018501,9.37913887,180.61,180.6,4.17949105]
[1754726021721,9.37913887,180.61,180.6,0.06]
[1754726025431,9.66346201,180.61,180.6,0.06]
[1754726025924,11.88143301,180.61,180.6,0.06]
[1754726036337,11.89143301,180.61,180.6,0.06]
[1754726041831,11.89143301,180.61,180.6,1e-08]
[1754726042551,26.28432314,180.59,180.58,1e-08]
[1754726042716,67.94667002,180.59,180.58,1e-08]
[1754726043055,0.28432314,180.58,180.56,0.06]
[1754726043257,39.43432314,180.57,180.56,0.06]
[1754726043552,39.46432314,180.57,180.56,0.06]
[1754726043751,48.18468851,180.57,180.56,0.06]
[1754726044244,50.40315151,180.57,180.56,0.06]
[1754726056339,63.13253903,180.57,180.56,0.06]
[1754726056554,26.28432314,180.55,180.54,0.06]
[1754726056756,42.19605754,180.55,180.54,0.06]
[1754726056939,81.37605754,180.55,180.54,0.06]
[1754726057134,83.59464354,180.55,180.54,0.06]
[1754726057760,89.13327549,180.55,180.54,0.06]
[1754726068267,73.22154109,180.55,180.54,0.06]
[1754726068473,50.65327549,180.55,180.54,0.06]
[1754726069457,37.92388797,180.55,180.54,0.06]
[1754726082769,35.70530197,180.55,180.54,0.06]
[1754726082976,37.92388797,180.55,180.54,0.06]
[1754726083174,35.70530197,180.55,180.54,0.06]
[1754726083381,35.70530197,180.55,180.54,4.20357905]
[1754726084374,37.77877279,180.55,180.54,4.20357905]
[1754726084988,37.77877279,180.55,180.54,0.06]
[1754726085385,41.98235179,180.55,180.54,0.06]
[1754726085695,41.98235179,180.55,180.54,4.20457719]
[1754726085877,41.98235179,180.55,180.54,0.06]
[1754726086393,41.98235179,180.55,180.54,4.20440163]
[1754726087274,41.98235179,180.55,180.54,4.20878204]
[1754726087475,38.80000491,180.55,180.54,4.20878204]
[1754726087784,41.98235179,180.55,180.54,4.20878204]
[1754726088173,41.28235179,180.55,180.54,4.20878204]
[1754726090091,12.92455783,180.55,180.54,4.20878204]
[1754726090396,12.92455783,180.55,180.54,4.87878204]
[1754726091990,12.92455783,180.55,180.54,4.20878204]
[1754726096892,13.62455783,180.55,180.54,4.20878204]
[1754726097598,15.70042478,180.55,180.54,4.20878204]
[1754726098193,15.00042478,180.55,180.54,4.20878204]
[1754726098795,10.79684578,180.55,180.54,4.20878204]
[1754726099299,8.72097883,180.55,180.54,4.87878204]
[1754726099499,5.56835079,180.56,180.54,4.87878204]
[1754726099683,0.03,180.56,180.55,8.00112892]
[1754726100093,3.21234688,180.56,180.55,4.81878204]
[1754726100390,8.75067209,180.56,180.55,4.14878204]
[1754726100777,8.75067209,180.56,180.55,4.81878204]
[1754726105197,8.75067209,180.56,180.55,4.14878204]
[1754726105885,0.03,180.56,180.55,4.14878204]
[1754726106082,3.21234688,180.56,180.55,4.14878204]
[1754726106784,3.21234688,180.56,180.55,4.14125068]
[1754726107278,8.75067209,180.56,180.55,4.14125068]
[1754726112114,9.43067209,180.56,180.55,4.14125068]
[1754726115488,9.43067209,180.56,180.55,4.13686042]
[1754726124295,9.43067209,180.56,180.54,0.06]
[1754726124503,6.24832521,180.56,180.55,4.13724691]
[1754726124712,9.43067209,180.56,180.55,4.13724691]
[1754726126213,9.43067209,180.56,180.55,4.19724691]
[1754726128818,13.62791909,180.56,180.55,4.19724691]
[1754726133024,4.227247,180.56,180.55,4.87724691]
[1754726133212,0.03,180.56,180.55,4.87724691]
[1754726138128,0.03,180.56,180.55,8.05959379]
[1754726138626,0.03,180.56,180.55,8.05884841]
[1754726139205,0.03,180.56,180.55,23.16506398]
[1754726139405,0.03,180.56,180.55,28.73216298]
[1754726140427,0.03,180.56,180.55,34.27079493]
[1754726141307,0.03,180.56,180.55,34.82465812]
[1754726141527,0.03,180.56,180.55,149.52465812]
[1754726141726,0.03,180.56,180.55,148.97079493]
[1754726144515,0.03,180.56,180.55,123.25511807]
[1754726144713,0.03,180.58,180.57,41.39053871]
[1754726145032,0.03,180.58,180.57,87.41886582]
[1754726145450,0.03,180.58,180.57,88.09886582]
[1754726146139,0.03,180.58,180.57,93.63688431]
[1754726147211,0.03,180.58,180.57,90.45453743]
[1754726147521,0.03,180.58,180.57,93.63688431]
[1754726147961,0.03,180.58,180.57,67.63688431]
[1754726148617,0.03,180.58,180.57,66.95688431]
[1754726149424,0.03,180.58,180.57,67.63688431]
[1754726150748,0.03,180.58,180.57,156.33688431]
[1754726150954,0.03,180.58,180.57,155.78308247]
[1754726151753,0.03,180.58,180.57,155.10308247]
[1754726151926,0.03,180.58,180.57,155.78308247]
[1754726152448,0.03,180.58,180.57,162.50446466]
[1754726154537,0.03,180.58,180.57,162.7887878]
[1754726156252,0.03,180.58,180.57,179.4287878]
[1754726156444,0.03,180.58,180.57,174.92427061]
[1754726157156,0.03,180.58,180.57,158.28427061]
[1754726157353,0.03,180.58,180.57,118.87994747]
[1754726157534,0.03,180.58,180.57,157.33994747]
[1754726160358,0.03,180.58,180.57,158.01994747]
[1754726160558,0.03,180.58,180.57,158.30427061]
[1754726161761,0.03,180.58,180.57,184.27862844]
[1754726162133,0.03,180.58,180.57,200.91862844]
[1754726162338,0.03,180.6,180.59,41.39053871]
[1754726162535,0.03,180.6,180.59,176.39748546]
[1754726162757,0.03,180.6,180.59,176.52374495]
[1754726162968,0.03,180.6,180.59,178.74024095]
[1754726166266,0.03,180.6,180.59,184.27764612]
[1754726167762,0.03,180.6,180.59,183.59764612]
[1754726170482,0.03,180.6,180.59,183.59683286]
[1754726173782,0.03,180.6,180.59,144.85250972]
[1754726174084,0.03,180.6,180.59,177.75510455]
[1754726174085,0.7,180.6,180.59,177.75510455]
[1754726174461,0.7,180.6,180.59,175.53860855]
[1754726175272,0.7,180.6,180.59,181.07601372]
[1754726175487,0.03,180.6,180.59,181.07601372]
[1754726175961,0.7,180.6,180.59,181.07601372]
[1754726176353,0.7,180.6,180.59,181.08320639]
[1754726179173,0.7,180.6,180.59,177.90085951]
[1754726179376,0.7,180.6,180.59,181.08320639]
[1754726181352,0.7,180.6,180.59,155.08320639]
[1754726189885,0.03,180.6,180.59,155.08320639]
[1754726191174,0.03,180.6,180.59,155.74320639]
[1754726191897,1e-08,180.61,180.59,184.24414853]
[1754726192064,1e-08,180.61,180.6,8.5132955]
[1754726192264,1e-08,180.61,180.6,97.2132955]
[1754726192465,1e-08,180.61,180.6,120.35742877]
[1754726192665,1e-08,180.61,180.6,119.80371892]
[1754726194071,1e-08,180.61,180.6,119.81620606]
[1754726194790,0.03,180.62,180.61,15.39053871]
[1754726195094,0.03,180.62,180.61,61.69629069]
[1754726195460,0.03,180.62,180.61,62.36629069]
[1754726195776,0.03,180.62,180.61,70.11933267]
[1754726196390,0.03,180.62,180.61,86.75933267]
[1754726196598,0.03,180.62,180.61,70.11933267]
[1754726198192,0.03,180.62,180.61,158.81933267]
[1754726198381,0.03,180.62,180.61,158.26565348]
[1754726198889,0.03,180.62,180.61,158.26565747]
[1754726199090,0.03,180.62,180.61,184.26565747]
[1754726199590,0.03,180.62,180.61,196.99504499]
[1754726199785,0.03,180.62,180.61,170.99504499]
[1754726201090,0.03,180.63,180.61,170.99504499]
[1754726201288,0.03,180.63,180.62,61.43200301]
[1754726201489,0.03,180.63,180.62,67.52213698]
[1754726201873,0.03,180.63,180.62,70.40826498]
[1754726203976,0.03,180.63,180.62,159.10826498]
[1754726204287,0.03,180.63,180.62,158.55461644]
[1754726205396,0.03,180.63,180.62,196.30461644]
[1754726206514,0.03,180.63,180.62,212.94461644]
[1754726206694,0.03,180.63,180.62,196.30461644]
[1754726211902,0.03,180.63,180.62,192.17488654]
[1754726212105,0.03,180.63,180.62,196.30006879]
[1754726212402,0.03,180.63,180.62,196.36006879]
[1754726215707,0.03,180.63,180.62,197.03006879]
[1754726216082,0.03,180.63,180.62,196.36006879]
[1754726219013,0.03,180.63,180.62,181.03006879]
[1754726219208,0.03,180.64,180.63,31.01794997]
[1754726219518,0.03,180.64,180.63,79.65292903]
[1754726219901,0.03,180.64,180.63,81.86893403]
[1754726220100,0.03,180.64,180.63,82.15325717]
[1754726221709,0.03,180.64,180.63,170.85325717]
[1754726221901,0.03,180.64,180.63,170.29963928]
[1754726225714,0.03,180.64,180.63,170.29837001]
[1754726226505,0.03,180.64,180.63,118.86465935]
[1754726226826,0.69,180.64,180.63,181.06865435]
[1754726227020,0.69,180.64,180.63,155.06865435]
[1754726227220,0.69,180.64,180.63,181.06865435]
[1754726228619,0.69,180.64,180.63,92.36865435]
[1754726229917,0.69,180.64,180.63,105.09804187]
[1754726230838,0.69,180.64,180.63,92.36865435]
[1754726231841,0.69,180.64,180.63,92.37256658]
[1754726234346,0.69,180.64,180.63,92.43256658]
[1754726236322,0.03,180.65,180.64,18.28856245]
[1754726236513,0.03,180.65,180.64,22.41638766]
[1754726237433,0.03,180.65,180.64,27.95226011]
[1754726238238,0.69,180.65,180.64,27.95226011]
[1754726241812,0.69,180.65,180.64,7.31017209]
[1754726244223,0.69,180.65,180.64,12.84604454]
[1754726245520,0.03,180.65,180.64,27.95226011]
[1754726246035,0.69,180.65,180.64,27.95226011]
[1754726246220,0.69,180.65,180.64,24.76991323]
[1754726246426,0.69,180.65,180.64,27.95226011]
[1754726248240,0.69,180.65,180.64,7.31017209]
[1754726248742,0.69,180.65,180.64,12.84604454]
[1754726250042,0.69,180.65,180.64,7.31017209]
[1754726250848,0.03,180.65,180.64,24.76991323]
[1754726251148,0.03,180.65,180.64,27.95226011]
[1754726253835,0.03,180.65,180.64,24.76991323]
[1754726254036,0.03,180.65,180.64,27.95226011]
[1754726254226,0.03,180.65,180.64,116.65226011]
[1754726256643,0.03,180.65,180.64,115.31025985]
[1754726258066,0.03,180.65,180.64,112.5244349]
[1754726258555,0.03,180.65,180.64,109.34208802]
[1754726258717,0.03,180.65,180.64,112.5244349]
[1754726259854,0.03,180.65,180.64,113.2344349]
[1754726266154,0.03,180.65,180.64,110.05208802]
[1754726266357,0.03,180.65,180.64,113.2344349]
[1754726268457,0.03,180.65,180.64,117.36846521]
[1754726270460,0.03,180.65,180.64,116.65846521]
[1754726272755,0.03,180.65,180.64,112.5244349]
[1754726272964,0.03,180.65,180.64,116.65968285]
[1754726275665,0.03,180.65,180.64,113.47733597]
[1754726275869,0.03,180.65,180.64,116.65968285]
[1754726278180,0.03,180.65,180.64,116.71968285]
[1754726281462,0.72,180.65,180.64,4.19524795]
[1754726281662,3.90234688,180.65,180.64,3.47524795]
[1754726281888,3.90234688,180.65,180.64,41.63524795]
[1754726282960,9.43791289,180.65,180.64,41.63524795]
[1754726283679,6.25556601,180.65,180.64,41.63524795]
[1754726283861,9.43791289,180.65,180.64,41.63524795]
[1754726285886,3.90234688,180.65,180.64,41.63524795]
[1754726286454,3.90234688,180.65,180.64,38.46]
[1754726286754,9.43791289,180.65,180.64,38.46]
[1754726295785,6.25556601,180.65,180.64,38.46]
[1754726295985,9.43791289,180.65,180.64,38.46]
[1754726297189,9.43791289,180.65,180.64,0.06]
[1754726299766,8.74791289,180.65,180.64,0.06]
[1754726300785,9.33791289,180.65,180.64,0.06]
[1754726300984,6.15556601,180.65,180.64,0.06]
[1754726301185,9.33791289,180.65,180.64,0.06]
[1754726302677,8.74791289,180.65,180.64,0.06]
[1754726306100,9.33791289,180.65,180.64,0.06]
[1754726306777,8.74791289,180.65,180.64,0.06]
[1754726307490,5.56556601,180.65,180.64,0.06]
[1754726307790,8.74791289,180.65,180.64,0.06]
[1754726308188,9.33791289,180.65,180.64,0.06]
[1754726313100,8.74791289,180.65,180.64,0.06]
[1754726313814,9.33791289,180.65,180.64,0.06]
[1754726314312,8.74791289,180.65,180.64,0.06]
[1754726317311,8.74791289,180.65,180.64,0.73]
[1754726321401,8.74791289,180.65,180.64,4.16900792]
[1754726324908,8.74791289,180.65,180.64,0.06]
[1754726325114,8.74791289,180.65,180.64,4.17437107]
[1754726326217,5.56556601,180.65,180.64,4.17437107]
[1754726326515,8.74791289,180.65,180.64,4.17437107]
[1754726327909,5.56556601,180.65,180.64,4.17437107]
[1754726328125,8.74791289,180.65,180.64,4.17437107]
[1754726328895,8.74791289,180.65,180.64,4.84437107]
[1754726333721,5.56556601,180.65,180.64,4.84437107]
[1754726333909,8.74791289,180.65,180.64,4.84437107]
[1754726336820,8.74791289,180.65,180.64,4.85517119]
[1754726338434,8.74791289,180.65,180.64,4.18517119]